[Event "*** Titled Tuesday Blitz"]
[Site "Chess.com"]
[Date "2021.04.06"]
[Round "4"]
[White "Handszar"]
[Black "ChampStan"]
[Result "0-1"]
[WhiteElo "2353"]
[BlackElo "2042"]
[TimeControl "180+1"]
[EndTime "10:39:47 PDT"]
[Termination "ChampStan won on time"]

1. e3 {[%clk 0:03:00.9]} 1... Nf6 {[%clk 0:02:58.5]} 2. Nf3 {[%clk 0:02:55.2]}
2... g6 {[%clk 0:02:57.5]} 3. b3 {[%clk 0:02:41]} 3... Bg7 {[%clk 0:02:56]} 4.
Bb2 {[%clk 0:02:41]} 4... d6 {[%clk 0:02:55.2]} 5. d3 {[%clk 0:02:37]} 5... e5
{[%clk 0:02:50.7]} 6. Be2 {[%clk 0:02:36]} 6... O-O {[%clk 0:02:43.7]} 7. O-O
{[%clk 0:02:33.6]} 7... c5 {[%clk 0:02:36]} 8. c4 {[%clk 0:02:22.6]} 8... Nc6
{[%clk 0:02:34.3]} 9. Nbd2 {[%clk 0:01:37.1]} 9... h6 {[%clk 0:02:30.4]} 10. a3
{[%clk 0:01:36.6]} 10... a5 {[%clk 0:02:28.5]} 11. Qc2 {[%clk 0:01:36.5]} 11...
Ne8 {[%clk 0:02:24.2]} 12. Bc3 {[%clk 0:01:14.3]} 12... Nc7 {[%clk 0:02:17.6]}
13. Rab1 {[%clk 0:01:12.7]} 13... f5 {[%clk 0:01:42.8]} 14. b4 {[%clk
0:01:06.7]} 14... axb4 {[%clk 0:01:40.7]} 15. axb4 {[%clk 0:01:06.2]} 15... cxb4
{[%clk 0:01:40.8]} 16. Bxb4 {[%clk 0:01:05.2]} 16... Nxb4 {[%clk 0:01:36.2]} 17.
Rxb4 {[%clk 0:01:06.1]} 17... g5 {[%clk 0:01:31.5]} 18. Rfb1 {[%clk 0:00:50.6]}
18... g4 {[%clk 0:01:29]} 19. Ne1 {[%clk 0:00:50.1]} 19... h5 {[%clk 0:01:23.7]}
20. Rb6 {[%clk 0:00:34.1]} 20... Ne6 {[%clk 0:01:08.9]} 21. Bf1 {[%clk
0:00:20.4]} 21... h4 {[%clk 0:00:59.7]} 22. Qb3 {[%clk 0:00:17.9]} 22... Nc5
{[%clk 0:00:54.4]} 23. Qb4 {[%clk 0:00:17.3]} 23... Ra2 {[%clk 0:00:45.5]} 24.
Nb3 {[%clk 0:00:06.9]} 24... Ra4 {[%clk 0:00:22.8]} 25. Qd2 {[%clk 0:00:04.9]}
25... f4 {[%clk 0:00:16]} 26. Nxc5 {[%clk 0:00:03.6]} 26... dxc5 {[%clk
0:00:15.2]} 27. Nc2 {[%clk 0:00:01.8]} 27... Ra2 {[%clk 0:00:14.5]} 0-1

[Event "*** Titled Tuesday Blitz"]
[Site "Chess.com"]
[Date "2021.04.06"]
[Round "4"]
[White "TheMagicMaik"]
[Black "jd001"]
[Result "1-0"]
[WhiteElo "2407"]
[BlackElo "2168"]
[TimeControl "180+1"]
[EndTime "10:39:48 PDT"]
[Termination "TheMagicMaik won by resignation"]

1. e4 {[%clk 0:03:00.9]} 1... e6 {[%clk 0:02:59.7]} 2. d4 {[%clk 0:03:00.9]}
2... d5 {[%clk 0:02:59.7]} 3. exd5 {[%clk 0:03:01.3]} 3... exd5 {[%clk
0:02:59.4]} 4. Bd3 {[%clk 0:03:02]} 4... Bd6 {[%clk 0:02:59.2]} 5. Nc3 {[%clk
0:03:01.2]} 5... c6 {[%clk 0:02:56.4]} 6. Nge2 {[%clk 0:03:01.1]} 6... Bg4
{[%clk 0:02:55.2]} 7. f3 {[%clk 0:03:01.2]} 7... Bh5 {[%clk 0:02:54.5]} 8. g4
{[%clk 0:03:01.7]} 8... Bg6 {[%clk 0:02:53.9]} 9. h4 {[%clk 0:03:02]} 9... Nd7
{[%clk 0:02:41.7]} 10. h5 {[%clk 0:03:01.8]} 10... Bxd3 {[%clk 0:02:40.9]} 11.
Qxd3 {[%clk 0:03:02.7]} 11... Qc7 {[%clk 0:02:34.3]} 12. Be3 {[%clk 0:02:58.3]}
12... O-O-O {[%clk 0:02:29.7]} 13. O-O-O {[%clk 0:02:58.2]} 13... Re8 {[%clk
0:02:27.1]} 14. Rhe1 {[%clk 0:02:37.8]} 14... Nb6 {[%clk 0:02:24.7]} 15. Kb1
{[%clk 0:02:34.3]} 15... Nf6 {[%clk 0:02:19.9]} 16. Nc1 {[%clk 0:02:25.5]} 16...
h6 {[%clk 0:02:12]} 17. Nb3 {[%clk 0:02:25.2]} 17... Nc4 {[%clk 0:02:09.6]} 18.
Bc1 {[%clk 0:02:22.7]} 18... Re7 {[%clk 0:01:48.6]} 19. Rxe7 {[%clk 0:02:16]}
19... Qxe7 {[%clk 0:01:47.9]} 20. Rg1 {[%clk 0:01:52.1]} 20... Re8 {[%clk
0:01:40.3]} 21. g5 {[%clk 0:01:42.4]} 21... hxg5 {[%clk 0:01:39.9]} 22. Qf5+
{[%clk 0:01:41.8]} 22... Qe6 {[%clk 0:01:07]} 23. Qxg5 {[%clk 0:01:34.5]} 23...
Bb4 {[%clk 0:00:52.8]} 24. Na4 {[%clk 0:01:24.9]} 24... Rh8 {[%clk 0:00:39.1]}
25. Nac5 {[%clk 0:01:15.3]} 25... Qe7 {[%clk 0:00:38]} 26. Qxg7 {[%clk
0:00:57.2]} 26... Rxh5 {[%clk 0:00:36.6]} 27. Bg5 {[%clk 0:00:26.2]} 27... Rxg5
{[%clk 0:00:30.2]} 28. Qxg5 {[%clk 0:00:25.9]} 28... b6 {[%clk 0:00:26.1]} 29.
Nd3 {[%clk 0:00:23.5]} 29... Bd6 {[%clk 0:00:25]} 30. a3 {[%clk 0:00:20.5]}
30... Kb7 {[%clk 0:00:24.6]} 31. Re1 {[%clk 0:00:19.2]} 31... Qd8 {[%clk
0:00:21.8]} 32. Ne5 {[%clk 0:00:15.9]} 32... Bxe5 {[%clk 0:00:16.3]} 33. dxe5
{[%clk 0:00:15.4]} 33... Nd7 {[%clk 0:00:16.2]} 34. Qxd8 {[%clk 0:00:15.3]} 1-0

[Event "*** Titled Tuesday Blitz"]
[Site "Chess.com"]
[Date "2021.04.06"]
[Round "4"]
[White "LileKoridze"]
[Black "dmjjmd"]
[Result "1/2-1/2"]
[WhiteElo "2461"]
[BlackElo "2238"]
[TimeControl "180+1"]
[EndTime "10:39:48 PDT"]
[Termination "Game drawn by repetition"]

1. d4 {[%clk 0:03:00.9]} 1... Nf6 {[%clk 0:03:00]} 2. c4 {[%clk 0:03:01]} 2...
e6 {[%clk 0:03:00.1]} 3. Nc3 {[%clk 0:03:01.5]} 3... Bb4 {[%clk 0:03:00.2]} 4.
e3 {[%clk 0:03:01.7]} 4... O-O {[%clk 0:03:00]} 5. Bd3 {[%clk 0:03:01.8]} 5...
d5 {[%clk 0:02:59.9]} 6. Ne2 {[%clk 0:03:01.3]} 6... c5 {[%clk 0:02:59.5]} 7.
O-O {[%clk 0:03:00.9]} 7... dxc4 {[%clk 0:02:59.1]} 8. Bxc4 {[%clk 0:03:00.8]}
8... cxd4 {[%clk 0:02:59.3]} 9. exd4 {[%clk 0:03:01.7]} 9... b6 {[%clk
0:02:58.7]} 10. Bg5 {[%clk 0:03:01.6]} 10... Be7 {[%clk 0:02:57.8]} 11. Qd3
{[%clk 0:02:33.4]} 11... Nc6 {[%clk 0:02:54.7]} 12. Rad1 {[%clk 0:02:32.5]}
12... Bb7 {[%clk 0:02:54.5]} 13. Nf4 {[%clk 0:02:27.6]} 13... Rc8 {[%clk
0:02:49.9]} 14. Bb3 {[%clk 0:02:09.8]} 14... Nb4 {[%clk 0:02:32.2]} 15. Qh3
{[%clk 0:02:08.1]} 15... Nfd5 {[%clk 0:02:17.6]} 16. Bxe7 {[%clk 0:02:05.4]}
16... Qxe7 {[%clk 0:01:51.5]} 17. Nh5 {[%clk 0:01:20.2]} 17... Qg5 {[%clk
0:01:40.8]} 18. Ne4 {[%clk 0:01:16.4]} 18... Qg6 {[%clk 0:01:38.6]} 19. Nd6
{[%clk 0:01:13.7]} 19... Ba6 {[%clk 0:01:10.1]} 20. Nxc8 {[%clk 0:00:57.8]}
20... Bxf1 {[%clk 0:01:09.5]} 21. Ne7+ {[%clk 0:00:48.2]} 21... Nxe7 {[%clk
0:01:09]} 22. Rxf1 {[%clk 0:00:48.9]} 22... Rd8 {[%clk 0:01:01]} 23. Nf4 {[%clk
0:00:44.5]} 23... Qf6 {[%clk 0:00:56.5]} 24. Qg4 {[%clk 0:00:38.9]} 24... Rxd4
{[%clk 0:00:53.6]} 25. g3 {[%clk 0:00:19.7]} 25... Nbd5 {[%clk 0:00:53.4]} 26.
Bxd5 {[%clk 0:00:13.7]} 26... Nxd5 {[%clk 0:00:54.3]} 27. Rc1 {[%clk 0:00:08.8]}
27... Nxf4 {[%clk 0:00:30.2]} 28. Rc8+ {[%clk 0:00:08.6]} 28... Rd8 {[%clk
0:00:30.6]} 29. Rxd8+ {[%clk 0:00:09.1]} 29... Qxd8 {[%clk 0:00:31.5]} 30. Qxf4
{[%clk 0:00:09.7]} 30... Qd1+ {[%clk 0:00:32.1]} 31. Kg2 {[%clk 0:00:10.2]}
31... Qd5+ {[%clk 0:00:33]} 32. Kg1 {[%clk 0:00:10.4]} 32... h6 {[%clk
0:00:30.1]} 33. Qb8+ {[%clk 0:00:10.5]} 33... Kh7 {[%clk 0:00:29.5]} 34. Qxa7
{[%clk 0:00:11.1]} 34... Qd1+ {[%clk 0:00:25.6]} 35. Kg2 {[%clk 0:00:11.6]}
35... Qd5+ {[%clk 0:00:26.2]} 36. Kg1 {[%clk 0:00:12.3]} 36... Qd1+ {[%clk
0:00:17]} 37. Kg2 {[%clk 0:00:11.5]} 37... Qd5+ {[%clk 0:00:17.5]} 38. Kg1
{[%clk 0:00:10.9]} 1/2-1/2

[Event "*** Titled Tuesday Blitz"]
[Site "Chess.com"]
[Date "2021.04.06"]
[Round "4"]
[White "klimkoj"]
[Black "crazy_but_lazy"]
[Result "1-0"]
[WhiteElo "2602"]
[BlackElo "2428"]
[TimeControl "180+1"]
[EndTime "10:39:49 PDT"]
[Termination "klimkoj won on time"]

1. e4 {[%clk 0:03:00.9]} 1... c5 {[%clk 0:02:59.4]} 2. Nf3 {[%clk 0:03:00.5]}
2... Nc6 {[%clk 0:02:59.6]} 3. d4 {[%clk 0:03:00.7]} 3... cxd4 {[%clk
0:03:00.5]} 4. Nxd4 {[%clk 0:03:01.6]} 4... Qb6 {[%clk 0:03:00.9]} 5. Nb3 {[%clk
0:03:01.2]} 5... Nf6 {[%clk 0:03:00.8]} 6. Bd3 {[%clk 0:02:58]} 6... e6 {[%clk
0:02:49.4]} 7. O-O {[%clk 0:02:56.9]} 7... a6 {[%clk 0:02:48.3]} 8. Nc3 {[%clk
0:02:56.4]} 8... Be7 {[%clk 0:02:46.5]} 9. Kh1 {[%clk 0:02:54.8]} 9... d6 {[%clk
0:02:42.2]} 10. f4 {[%clk 0:02:54.8]} 10... O-O {[%clk 0:02:42.6]} 11. Qf3
{[%clk 0:02:51.7]} 11... Qc7 {[%clk 0:02:24.1]} 12. Be3 {[%clk 0:02:40.3]} 12...
b5 {[%clk 0:02:20.6]} 13. Rae1 {[%clk 0:02:35.3]} 13... Bb7 {[%clk 0:02:15.4]}
14. Qh3 {[%clk 0:02:32.7]} 14... b4 {[%clk 0:01:57.3]} 15. e5 {[%clk 0:02:16.8]}
15... dxe5 {[%clk 0:01:48.2]} 16. fxe5 {[%clk 0:02:17.7]} 16... Nxe5 {[%clk
0:01:49.1]} 17. Bf4 {[%clk 0:02:16.5]} 17... Bd6 {[%clk 0:01:28.1]} 18. Bxe5
{[%clk 0:01:36.2]} 18... Bxe5 {[%clk 0:00:56.1]} 19. Na4 {[%clk 0:01:12.7]}
19... h6 {[%clk 0:00:44.8]} 20. Nac5 {[%clk 0:01:09]} 20... Bd5 {[%clk
0:00:37.7]} 21. Nxa6 {[%clk 0:01:08.1]} 21... Qd6 {[%clk 0:00:32.3]} 22. Nxb4
{[%clk 0:01:05.7]} 22... Bb7 {[%clk 0:00:13.3]} 23. c3 {[%clk 0:01:00.5]} 23...
Bf4 {[%clk 0:00:08.3]} 24. Bb1 {[%clk 0:00:54.4]} 24... Bg5 {[%clk 0:00:04.4]}
25. Rd1 {[%clk 0:00:53.7]} 25... Qc7 {[%clk 0:00:03.3]} 26. Nd4 {[%clk
0:00:49.5]} 26... Rfd8 {[%clk 0:00:03.1]} 27. Nf3 {[%clk 0:00:46.6]} 27... Bf4
{[%clk 0:00:02.6]} 28. Nd3 {[%clk 0:00:43.9]} 28... e5 {[%clk 0:00:01.9]} 29.
Nxf4 {[%clk 0:00:43.2]} 29... exf4 {[%clk 0:00:02.4]} 30. Qf5 {[%clk 0:00:43]}
30... Rxd1 {[%clk 0:00:01.5]} 31. Rxd1 {[%clk 0:00:43.9]} 31... Rd8 {[%clk
0:00:01.9]} 32. Re1 {[%clk 0:00:43.4]} 32... Bxf3 {[%clk 0:00:01.1]} 33. gxf3
{[%clk 0:00:42.7]} 33... Qb7 {[%clk 0:00:01.2]} 34. Rf1 {[%clk 0:00:27.3]} 34...
Qxb2 {[%clk 0:00:01.5]} 35. Qc2 {[%clk 0:00:24.4]} 1-0

[Event "*** Titled Tuesday Blitz"]
[Site "Chess.com"]
[Date "2021.04.06"]
[Round "4"]
[White "GameOverBro"]
[Black "Konek-Gorbunok"]
[Result "1/2-1/2"]
[WhiteElo "2513"]
[BlackElo "2340"]
[TimeControl "180+1"]
[EndTime "10:39:49 PDT"]
[Termination "Game drawn by repetition"]

1. e4 {[%clk 0:03:00.9]} 1... c5 {[%clk 0:02:59.5]} 2. Ne2 {[%clk 0:03:00.5]}
2... a6 {[%clk 0:02:59]} 3. c4 {[%clk 0:02:59.5]} 3... d6 {[%clk 0:02:57.8]} 4.
Nbc3 {[%clk 0:02:58.8]} 4... e5 {[%clk 0:02:57]} 5. d3 {[%clk 0:02:57.9]} 5...
Nf6 {[%clk 0:02:56.5]} 6. g3 {[%clk 0:02:57.1]} 6... Be7 {[%clk 0:02:56.8]} 7.
Bg2 {[%clk 0:02:56.9]} 7... Nc6 {[%clk 0:02:57.4]} 8. O-O {[%clk 0:02:56.8]}
8... O-O {[%clk 0:02:58]} 9. f4 {[%clk 0:02:56.7]} 9... Nd4 {[%clk 0:02:57.9]}
10. f5 {[%clk 0:02:54.4]} 10... Bd7 {[%clk 0:02:55.3]} 11. h3 {[%clk 0:02:54.5]}
11... b5 {[%clk 0:02:54.7]} 12. g4 {[%clk 0:02:46]} 12... Ne8 {[%clk 0:02:53.3]}
13. Nd5 {[%clk 0:02:45.4]} 13... Bh4 {[%clk 0:02:47.5]} 14. Be3 {[%clk
0:02:28.4]} 14... Nf6 {[%clk 0:02:38.4]} 15. Qd2 {[%clk 0:02:12.1]} 15... Nxd5
{[%clk 0:02:36.6]} 16. exd5 {[%clk 0:02:08.4]} 16... Nxe2+ {[%clk 0:02:35.6]}
17. Qxe2 {[%clk 0:02:08.1]} 17... h6 {[%clk 0:02:35]} 18. b3 {[%clk 0:01:58.4]}
18... b4 {[%clk 0:02:33.5]} 19. Be4 {[%clk 0:01:56.5]} 19... a5 {[%clk
0:02:27.5]} 20. Rf3 {[%clk 0:01:42.1]} 20... a4 {[%clk 0:02:25.7]} 21. Raf1
{[%clk 0:01:42.3]} 21... f6 {[%clk 0:02:25]} 22. g5 {[%clk 0:01:31.8]} 22...
Bxg5 {[%clk 0:02:03.3]} 23. Bxg5 {[%clk 0:01:31.3]} 23... fxg5 {[%clk
0:02:03.1]} 24. h4 {[%clk 0:01:18.8]} 24... gxh4 {[%clk 0:01:58.8]} 25. f6
{[%clk 0:01:13.3]} 25... Rxf6 {[%clk 0:01:34.4]} 26. Rxf6 {[%clk 0:01:10.3]}
26... gxf6 {[%clk 0:01:34.1]} 27. Qh5 {[%clk 0:01:07.4]} 27... Qf8 {[%clk
0:00:56]} 28. Kh1 {[%clk 0:01:03]} 28... f5 {[%clk 0:00:47.5]} 29. Bxf5 {[%clk
0:01:01.9]} 29... Bxf5 {[%clk 0:00:46.7]} 30. Rxf5 {[%clk 0:01:02.8]} 30... Qg7
{[%clk 0:00:43.6]} 31. Rf1 {[%clk 0:00:53.5]} 31... axb3 {[%clk 0:00:39.7]} 32.
axb3 {[%clk 0:00:44.2]} 32... Kh8 {[%clk 0:00:38.5]} 33. Rg1 {[%clk 0:00:42.8]}
33... Qf6 {[%clk 0:00:34.5]} 34. Qg4 {[%clk 0:00:27.8]} 34... Rf8 {[%clk
0:00:27.8]} 35. Qd7 {[%clk 0:00:17.4]} 35... Qf3+ {[%clk 0:00:18.7]} 36. Rg2
{[%clk 0:00:17.6]} 36... Qf1+ {[%clk 0:00:16.8]} 37. Kh2 {[%clk 0:00:17.8]}
37... Qf4+ {[%clk 0:00:15.4]} 38. Kh1 {[%clk 0:00:17.7]} 38... Qf1+ {[%clk
0:00:15.1]} 39. Kh2 {[%clk 0:00:18.1]} 39... Qf4+ {[%clk 0:00:15.2]} 40. Kh1
{[%clk 0:00:18.5]} 40... Qf1+ {[%clk 0:00:15.4]} 1/2-1/2

[Event "*** Titled Tuesday Blitz"]
[Site "Chess.com"]
[Date "2021.04.06"]
[Round "4"]
[White "Camels1981"]
[Black "yobdc"]
[Result "0-1"]
[WhiteElo "2354"]
[BlackElo "2525"]
[TimeControl "180+1"]
[EndTime "10:39:50 PDT"]
[Termination "yobdc won on time"]

1. e4 {[%clk 0:03:00.9]} 1... e6 {[%clk 0:02:59.8]} 2. d4 {[%clk 0:02:55.9]}
2... d5 {[%clk 0:02:59.9]} 3. Nd2 {[%clk 0:02:55.1]} 3... Nf6 {[%clk 0:02:59.3]}
4. e5 {[%clk 0:02:54.3]} 4... Nfd7 {[%clk 0:02:59.4]} 5. c3 {[%clk 0:02:55.2]}
5... c5 {[%clk 0:02:59.5]} 6. Bd3 {[%clk 0:02:55.7]} 6... Nc6 {[%clk 0:02:59.6]}
7. Ne2 {[%clk 0:02:55.9]} 7... cxd4 {[%clk 0:02:59.8]} 8. cxd4 {[%clk
0:02:56.8]} 8... f6 {[%clk 0:03:00]} 9. exf6 {[%clk 0:02:55.7]} 9... Nxf6 {[%clk
0:03:00.1]} 10. Nf3 {[%clk 0:02:56.6]} 10... Bd6 {[%clk 0:03:00.2]} 11. Bg5
{[%clk 0:02:56]} 11... O-O {[%clk 0:02:50.8]} 12. O-O {[%clk 0:02:55.5]} 12...
Qc7 {[%clk 0:02:44.1]} 13. Qc2 {[%clk 0:02:54.9]} 13... h6 {[%clk 0:02:29.8]}
14. Bh4 {[%clk 0:02:54.7]} 14... Nh5 {[%clk 0:02:27.1]} 15. Bh7+ {[%clk
0:02:40.7]} 15... Kh8 {[%clk 0:02:27.4]} 16. Bg6 {[%clk 0:02:41.6]} 16... Rxf3
{[%clk 0:02:24.8]} 17. Bxh5 {[%clk 0:02:35.4]} 17... Rf5 {[%clk 0:02:21.7]} 18.
Bg6 {[%clk 0:02:29.8]} 18... Bxh2+ {[%clk 0:02:14.5]} 19. Kh1 {[%clk 0:02:29.7]}
19... Bd6 {[%clk 0:02:11.5]} 20. Bxf5 {[%clk 0:02:13.1]} 20... exf5 {[%clk
0:02:11.8]} 21. Rfe1 {[%clk 0:02:04.2]} 21... Bd7 {[%clk 0:02:05.7]} 22. Bg3
{[%clk 0:01:16.2]} 22... f4 {[%clk 0:02:03.5]} 23. Bh2 {[%clk 0:01:16.2]} 23...
Rf8 {[%clk 0:02:00.8]} 24. f3 {[%clk 0:01:15.9]} 24... Qd8 {[%clk 0:01:46.6]}
25. Qg6 {[%clk 0:01:03.6]} 25... Rf6 {[%clk 0:01:31.3]} 26. Qh5 {[%clk
0:00:50.9]} 26... Rf5 {[%clk 0:01:16.3]} 27. Qg6 {[%clk 0:00:38.8]} 27... Qf8
{[%clk 0:01:15]} 28. Nxf4 {[%clk 0:00:09.4]} 28... Bxf4 {[%clk 0:01:09.4]} 29.
Bxf4 {[%clk 0:00:09.3]} 29... Rxf4 {[%clk 0:01:09.7]} 30. Re3 {[%clk 0:00:07.5]}
30... Rf6 {[%clk 0:00:57.7]} 31. Qh5 {[%clk 0:00:07.4]} 31... Qd6 {[%clk
0:00:43.5]} 32. Rae1 {[%clk 0:00:04.8]} 32... Kh7 {[%clk 0:00:43.4]} 33. Qh2
{[%clk 0:00:02.6]} 33... Rf4 {[%clk 0:00:31.8]} 34. Re5 {[%clk 0:00:01.4]} 34...
Qf6 {[%clk 0:00:26.8]} 35. Rh5 {[%clk 0:00:01.2]} 35... Nxd4 {[%clk 0:00:23.1]}
0-1

[Event "*** Titled Tuesday Blitz"]
[Site "Chess.com"]
[Date "2021.04.06"]
[Round "4"]
[White "2008king"]
[Black "ajdemipopushi"]
[Result "0-1"]
[WhiteElo "2217"]
[BlackElo "2432"]
[TimeControl "180+1"]
[EndTime "10:39:51 PDT"]
[Termination "ajdemipopushi won by resignation"]

1. e4 {[%clk 0:03:00.9]} 1... c5 {[%clk 0:02:59.7]} 2. Nf3 {[%clk 0:03:00.9]}
2... g6 {[%clk 0:03:00]} 3. d4 {[%clk 0:03:00.5]} 3... cxd4 {[%clk 0:03:00]} 4.
Nxd4 {[%clk 0:03:00.9]} 4... Bg7 {[%clk 0:03:00.4]} 5. Nc3 {[%clk 0:03:00.4]}
5... Nc6 {[%clk 0:03:00.8]} 6. Be3 {[%clk 0:03:00.7]} 6... Nf6 {[%clk 0:03:01]}
7. Bc4 {[%clk 0:03:01.1]} 7... O-O {[%clk 0:03:00.8]} 8. Bb3 {[%clk 0:03:01.4]}
8... Ng4 {[%clk 0:03:00.6]} 9. Qxg4 {[%clk 0:03:00.1]} 9... Nxd4 {[%clk
0:03:00.6]} 10. Qh4 {[%clk 0:02:47.1]} 10... Nxb3 {[%clk 0:02:56.3]} 11. axb3
{[%clk 0:02:45.4]} 11... d6 {[%clk 0:02:54]} 12. O-O-O {[%clk 0:02:43.2]} 12...
Be6 {[%clk 0:02:49.7]} 13. Bd4 {[%clk 0:02:20.4]} 13... Qc7 {[%clk 0:02:21]} 14.
Bxg7 {[%clk 0:02:19.3]} 14... Kxg7 {[%clk 0:02:21]} 15. f4 {[%clk 0:01:57.2]}
15... f6 {[%clk 0:02:12.8]} 16. Rhe1 {[%clk 0:01:32.9]} 16... Rac8 {[%clk
0:02:01]} 17. e5 {[%clk 0:01:28.9]} 17... dxe5 {[%clk 0:01:54.8]} 18. fxe5
{[%clk 0:01:29.8]} 18... f5 {[%clk 0:01:54.9]} 19. Kb1 {[%clk 0:01:14]} 19...
Rfd8 {[%clk 0:01:19]} 20. Qf4 {[%clk 0:01:12.4]} 20... a6 {[%clk 0:01:16.1]} 21.
h4 {[%clk 0:01:09.3]} 21... h6 {[%clk 0:01:08]} 22. Rxd8 {[%clk 0:00:41]} 22...
Rxd8 {[%clk 0:01:07.8]} 23. Qf2 {[%clk 0:00:40.7]} 23... b5 {[%clk 0:00:57]} 24.
Ne2 {[%clk 0:00:25.5]} 24... Rd2 {[%clk 0:00:49.6]} 25. Nd4 {[%clk 0:00:24.4]}
25... Qxc2+ {[%clk 0:00:43.8]} 26. Nxc2 {[%clk 0:00:22.4]} 26... Rxf2 {[%clk
0:00:43.4]} 27. Nd4 {[%clk 0:00:22.7]} 27... Kf7 {[%clk 0:00:38]} 28. Rc1 {[%clk
0:00:21.9]} 28... Rf4 {[%clk 0:00:33.1]} 29. Nxe6 {[%clk 0:00:19.7]} 29... Kxe6
{[%clk 0:00:33.1]} 30. Rc6+ {[%clk 0:00:20.4]} 30... Kxe5 {[%clk 0:00:33.2]} 31.
Rxg6 {[%clk 0:00:20.8]} 31... Rxh4 {[%clk 0:00:31.2]} 32. Rxa6 {[%clk
0:00:21.3]} 32... Rg4 {[%clk 0:00:29.7]} 33. Rxh6 {[%clk 0:00:21.2]} 33... Rxg2
{[%clk 0:00:29.4]} 34. Rb6 {[%clk 0:00:21.2]} 34... f4 {[%clk 0:00:27.6]} 35.
Rxb5+ {[%clk 0:00:21.6]} 35... Ke4 {[%clk 0:00:27.8]} 36. Rb4+ {[%clk 0:00:22]}
36... Kf3 {[%clk 0:00:25.7]} 37. Rb7 {[%clk 0:00:22.5]} 37... e5 {[%clk
0:00:25.4]} 38. b4 {[%clk 0:00:23]} 38... e4 {[%clk 0:00:25.8]} 39. b5 {[%clk
0:00:23.6]} 39... e3 {[%clk 0:00:26.2]} 40. b6 {[%clk 0:00:24.1]} 40... e2
{[%clk 0:00:26.4]} 41. Re7 {[%clk 0:00:24.7]} 41... Rg1+ {[%clk 0:00:26.4]} 42.
Ka2 {[%clk 0:00:22]} 42... e1=Q {[%clk 0:00:26.7]} 43. Rxe1 {[%clk 0:00:22.5]}
43... Rxe1 {[%clk 0:00:26.9]} 44. b4 {[%clk 0:00:21.2]} 44... Re6 {[%clk
0:00:26.1]} 45. Kb3 {[%clk 0:00:21.2]} 45... Rxb6 {[%clk 0:00:26.1]} 46. Kc4
{[%clk 0:00:22.1]} 46... Ke4 {[%clk 0:00:25.4]} 47. b5 {[%clk 0:00:23]} 47... f3
{[%clk 0:00:25.4]} 48. Kc5 {[%clk 0:00:23.9]} 48... Rb8 {[%clk 0:00:25]} 49. b6
{[%clk 0:00:24.8]} 49... f2 {[%clk 0:00:25.3]} 50. Kc6 {[%clk 0:00:25.7]} 50...
f1=Q {[%clk 0:00:25.6]} 51. Kc7 {[%clk 0:00:26.6]} 0-1